fUSD/lending_fUSD_20260612
["ID","MTS","AMOUNT","RATE_DAILY","PERIOD"]
[424844101,1781199038000,-1345.37,0.00014999,2]
[424844097,1781199038000,-1345.37,0.00014999,2]
[424844085,1781199038000,-500.0,0.00014999,2]
[424844091,1781199038000,-500.0,0.00014999,2]
[424844121,1781199038000,-587.0,0.00015029,2]
[424844076,1781199038000,-160.0,0.00013127,2]
[424844078,1781199038000,-505.15046214,0.00014807,2]
[424844077,1781199038000,-191.736,0.00014807,2]
[424844079,1781199038000,-200.78997788,0.00014889,2]
[424844080,1781199038000,-1458421.43575584,0.00014899,2]
[424844081,1781199038000,-249.38,0.00014908,2]
[424844083,1781199038000,-250.0,0.0001497,2]
[424844082,1781199038000,-158.55225595,0.0001496,2]
[424844087,1781199038000,-500.0,0.00014999,2]
[424844084,1781199038000,-1500.0,0.0001497,2]
[424844088,1781199038000,-500.0,0.00014999,2]
[424844086,1781199038000,-500.0,0.00014999,2]
[424844090,1781199038000,-643.44,0.00014999,2]
[424844089,1781199038000,-500.0,0.00014999,2]
[424844096,1781199038000,-1345.37,0.00014999,2]
[424844124,1781199038000,-450.27,0.00015131,2]
[424844103,1781199038000,-1345.37,0.00014999,2]
[424844113,1781199038000,-1345.37,0.00014999,2]
[424844154,1781199038000,-500.0,0.000166,6]
[424844158,1781199038000,-1700.0,0.000168,6]
[424844152,1781199038000,-450.27,0.00016501,2]
[424844156,1781199038000,-1100.0,0.000167,6]
[424844157,1781199038000,-168.39,0.00016712,2]
[424844155,1781199038000,-1672.7364795,0.00016614,2]
[424844153,1781199038000,-249.38,0.00016564,2]
[424844159,1781199038000,-2300.0,0.000169,6]
[424844162,1781199038000,-377.460591,0.00016949,2]
[424844163,1781199038000,-170.215494,0.00016949,2]
[424844165,1781199038000,-195.25181,0.00016949,2]
[424844166,1781199038000,-268.0,0.00016964,2]
[424844167,1781199038000,-259.67,0.0001698,3]
[424844115,1781199038000,-1345.37,0.00014999,2]
[424844160,1781199038000,-255.764512,0.00016949,2]
[424844161,1781199038000,-170.712711,0.00016949,2]
[424844164,1781199038000,-402.994269,0.00016949,2]
[424844149,1781199038000,-801.5,0.00016438,2]
[424844151,1781199038000,-823.0,0.00016491,2]
[424844119,1781199038000,-1345.50147516,0.00014999,2]
[424844117,1781199038000,-1345.37,0.00014999,2]
[424844128,1781199038000,-1555.5,0.00015518,2]
[424844139,1781199038000,-1613.0535,0.00016066,2]
[424844141,1781199038000,-158.55225595,0.000162,2]
[424844143,1781199038000,-5207.973,0.00016324,2]
[424844126,1781199038000,-371.3,0.00015244,2]
[424844145,1781199038000,-352.243,0.00016324,2]
[424844127,1781199038000,-150.0,0.0001531,2]
[424844131,1781199038000,-433.0,0.00015668,2]
[424844133,1781199038000,-503.3,0.00015868,2]
[424844135,1781199038000,-2453.04031213,0.00015906,2]
[424844137,1781199038000,-300.0,0.00016,2]
[424844147,1781199038000,-4180.1811,0.00016338,2]
[424844129,1781199038000,-158.55225595,0.0001558,2]
[424844207,1781199039000,-500.0,0.00017295,2]
[424844200,1781199039000,-1055.86,0.00017295,2]
[424844201,1781199039000,-1055.86,0.00017295,2]
[424844204,1781199039000,-1055.86,0.00017295,2]
[424844203,1781199039000,-1055.86,0.00017295,2]
[424844205,1781199039000,-1055.86,0.00017295,2]
[424844206,1781199039000,-549.73497953,0.00017295,2]
[424844199,1781199039000,-1055.86,0.00017295,2]
[424844197,1781199039000,-1055.86,0.00017295,2]
[424844208,1781199039000,-500.0,0.00017295,2]
[424844223,1781199039000,-500.0,0.00017295,2]
[424844202,1781199039000,-1055.86,0.00017295,2]
[424844217,1781199039000,-500.0,0.00017295,2]
[424844213,1781199039000,-500.0,0.00017295,2]
[424844210,1781199039000,-500.0,0.00017295,2]
[424844212,1781199039000,-500.0,0.00017295,2]
[424844211,1781199039000,-500.0,0.00017295,2]
[424844215,1781199039000,-500.0,0.00017295,2]
[424844219,1781199039000,-500.0,0.00017295,2]
[424844218,1781199039000,-500.0,0.00017295,2]
[424844214,1781199039000,-500.0,0.00017295,2]
[424844216,1781199039000,-500.0,0.00017295,2]
[424844220,1781199039000,-500.0,0.00017295,2]
[424844221,1781199039000,-321.97837495,0.00017295,2]
[424844198,1781199039000,-1055.86,0.00017295,2]
[424844209,1781199039000,-500.0,0.00017295,2]
[424844196,1781199039000,-1055.86,0.00017295,2]
[424844179,1781199039000,-481.92424523,0.00017294,2]
[424844195,1781199039000,-500.0,0.00017295,2]
[424844173,1781199039000,-575.078954,0.000172,2]
[424844171,1781199039000,-278.4562,0.00017195,2]
[424844168,1781199039000,-779.05,0.0001698,3]
[424844172,1781199039000,-566.6255574,0.000172,2]
[424844174,1781199039000,-443.09253188,0.000172,2]
[424844170,1781199039000,-1734.62772924,0.00017162,2]
[424844169,1781199039000,-2507.27306095,0.00017062,2]
[424844176,1781199039000,-500.0,0.00017294,2]
[424844175,1781199039000,-200.78997788,0.00017285,2]
[424844177,1781199039000,-500.0,0.00017294,2]
[424844178,1781199039000,-500.0,0.00017294,2]
[424844181,1781199039000,-500.0,0.00017294,2]
[424844180,1781199039000,-428.88574778,0.00017294,2]
[424844182,1781199039000,-185.0,0.00017294,2]
[424844185,1781199039000,-529.86206573,0.00017294,2]
[424844183,1781199039000,-500.0,0.00017294,2]
[424844184,1781199039000,-257.02104322,0.00017294,2]
[424844186,1781199039000,-500.0,0.00017295,2]
[424844188,1781199039000,-500.0,0.00017295,2]
[424844190,1781199039000,-500.0,0.00017295,2]
[424844187,1781199039000,-500.0,0.00017295,2]
[424844189,1781199039000,-500.0,0.00017295,2]
[424844193,1781199039000,-500.0,0.00017295,2]
[424844192,1781199039000,-500.0,0.00017295,2]
[424844194,1781199039000,-500.0,0.00017295,2]
[424844191,1781199039000,-500.0,0.00017295,2]
[424844224,1781199039000,-500.0,0.00017295,2]
[424844253,1781199039000,-500.0,0.00017295,2]
[424844226,1781199039000,-500.0,0.00017295,2]
[424844255,1781199039000,-500.0,0.00017295,2]
[424844259,1781199039000,-500.0,0.00017295,2]
[424844261,1781199039000,-500.0,0.00017295,2]
[424844260,1781199039000,-580.87,0.00017295,2]
[424844258,1781199039000,-500.0,0.00017295,2]
[424844257,1781199039000,-500.0,0.00017295,2]
[424844263,1781199039000,-500.0,0.00017295,2]
[424844264,1781199039000,-500.0,0.00017295,2]
[424844265,1781199039000,-500.0,0.00017295,2]
[424844267,1781199039000,-500.0,0.00017295,2]
[424844276,1781199039000,-500.0,0.00017295,2]
[424844266,1781199039000,-500.0,0.00017295,2]
[424844268,1781199039000,-500.0,0.00017295,2]
[424844272,1781199039000,-500.0,0.00017295,2]
[424844271,1781199039000,-500.0,0.00017295,2]
[424844273,1781199039000,-500.0,0.00017295,2]
[424844275,1781199039000,-500.0,0.00017295,2]
[424844270,1781199039000,-500.0,0.00017295,2]
[424844274,1781199039000,-500.0,0.00017295,2]
[424844277,1781199039000,-261.02640831,0.00017295,2]
[424844281,1781199039000,-500.0,0.00017295,2]
[424844282,1781199039000,-500.0,0.00017295,2]
[424844280,1781199039000,-500.0,0.00017295,2]
[424844278,1781199039000,-500.0,0.00017295,2]
[424844225,1781199039000,-500.0,0.00017295,2]
[424844262,1781199039000,-500.0,0.00017295,2]
[424844256,1781199039000,-500.0,0.00017295,2]
[424844269,1781199039000,-500.0,0.00017295,2]
[424844250,1781199039000,-500.0,0.00017295,2]
[424844254,1781199039000,-500.0,0.00017295,2]
[424844230,1781199039000,-500.0,0.00017295,2]
[424844229,1781199039000,-500.0,0.00017295,2]
[424844231,1781199039000,-500.0,0.00017295,2]
[424844222,1781199039000,-500.0,0.00017295,2]
[424844227,1781199039000,-500.0,0.00017295,2]
[424844228,1781199039000,-500.0,0.00017295,2]
[424844232,1781199039000,-500.0,0.00017295,2]
[424844235,1781199039000,-500.0,0.00017295,2]
[424844236,1781199039000,-500.0,0.00017295,2]
[424844237,1781199039000,-500.0,0.00017295,2]
[424844241,1781199039000,-500.0,0.00017295,2]
[424844234,1781199039000,-500.0,0.00017295,2]
[424844233,1781199039000,-500.0,0.00017295,2]
[424844239,1781199039000,-500.0,0.00017295,2]
[424844251,1781199039000,-500.0,0.00017295,2]
[424844252,1781199039000,-500.0,0.00017295,2]
[424844245,1781199039000,-500.0,0.00017295,2]
[424844246,1781199039000,-500.0,0.00017295,2]
[424844243,1781199039000,-500.0,0.00017295,2]
[424844244,1781199039000,-500.0,0.00017295,2]
[424844249,1781199039000,-500.0,0.00017295,2]
[424844247,1781199039000,-500.0,0.00017295,2]
[424844242,1781199039000,-500.0,0.00017295,2]
[424844238,1781199039000,-500.0,0.00017295,2]
[424844240,1781199039000,-500.0,0.00017295,2]
[424844248,1781199039000,-500.0,0.00017295,2]
[424844305,1781199040000,-1161.66341644,0.00017295,2]
[424844306,1781199040000,-356007.91342843,0.00017295,2]
[424844307,1781199040000,-589.84,0.000173,2]
[424844308,1781199040000,-2507.27306092,0.00017377,2]
[424844310,1781199040000,-2507.27306092,0.00017693,2]
[424844311,1781199040000,-1798.80895522,0.0001771,2]
[424844316,1781199040000,-505.0,0.00018,2]
[424844314,1781199040000,-297.99,0.00018,2]
[424844313,1781199040000,-12942.03,0.00018,2]
[424844309,1781199040000,-503.3,0.00017455,2]
[424844318,1781199040000,-249.38,0.0001822,2]
[424844312,1781199040000,-26173.53,0.00018,2]
[424844317,1781199040000,-2507.27306092,0.00018008,2]
[424844304,1781199040000,-2226.48056371,0.00017295,2]
[424844285,1781199040000,-500.0,0.00017295,2]
[424844302,1781199040000,-1576.48558132,0.00017295,2]
[424844300,1781199040000,-1973.44972721,0.00017295,2]
[424844290,1781199040000,-585.0,0.00017295,5]
[424844293,1781199040000,-776.30000002,0.00017295,2]
[424844291,1781199040000,-2000.0,0.00017295,2]
[424844292,1781199040000,-2135962.16851263,0.00017295,2]
[424844289,1781199040000,-634.0,0.00017295,5]
[424844283,1781199040000,-500.0,0.00017295,2]
[424844288,1781199040000,-500.0,0.00017295,2]
[424844284,1781199040000,-500.0,0.00017295,2]
[424844286,1781199040000,-500.0,0.00017295,2]
[424844287,1781199040000,-500.0,0.00017295,2]
[424844315,1781199040000,-350.0,0.00018,2]
[424844303,1781199040000,-315.53877024,0.00017295,2]
[424844320,1781199040000,-2507.27306092,0.00018323,2]
[424844330,1781199040000,-1055.86,0.00018989,2]
[424844346,1781199040000,-500.0,0.0001981,2]
[424844348,1781199040000,-66512.67495365,0.00019811,2]
[424844350,1781199040000,-481.0271002,0.00019811,2]
[424844349,1781199040000,-61314.96898158,0.00019811,2]
[424844347,1781199040000,-500.0,0.0001981,2]
[424844345,1781199040000,-500.0,0.0001981,2]
[424844321,1781199040000,-519.34,0.0001835,3]
[424844344,1781199040000,-500.0,0.0001981,2]
[424844342,1781199040000,-500.0,0.0001981,2]
[424844351,1781199040000,-2445.00279154,0.00019811,2]
[424844343,1781199040000,-307.75,0.0001981,2]
[424844339,1781199040000,-500.0,0.0001981,2]
[424844341,1781199040000,-500.0,0.0001981,2]
[424844340,1781199040000,-1055.86,0.0001981,2]
[424844338,1781199040000,-10000.0,0.00019711,2]
[424844352,1781199040000,-540.16306322,0.00019811,2]
[424844334,1781199040000,-2507.27306092,0.00019269,2]
[424844337,1781199040000,-2507.27306092,0.00019585,2]
[424844336,1781199040000,-2005.9555727,0.00019354,2]
[424844333,1781199040000,-505.0,0.00019253,3]
[424844335,1781199040000,-22051.1428621,0.00019339,7]
[424844331,1781199040000,-503.3,0.00019041,2]
[424844326,1781199040000,-2507.27306092,0.00018639,2]
[424844327,1781199040000,-1934.38338736,0.00018806,2]
[424844329,1781199040000,-500.0,0.00018989,2]
[424844328,1781199040000,-2507.27306092,0.00018954,2]
[424844324,1781199040000,-457.405309,0.0001843,2]
[424844325,1781199040000,-505.0,0.00018626,2]
[424844323,1781199040000,-801.5,0.0001841,2]
[424844319,1781199040000,-1865.36488656,0.00018258,2]
[424844322,1781199040000,-200.0,0.00018352,2]
[424844332,1781199040000,-200.0,0.00019096,2]
[424844378,1781199043000,-696.88646213,0.00018156,2]
[424844381,1781199043000,-508.57086877,0.00019811,2]
[424844380,1781199043000,-6309.8856548,0.00019811,2]
[424844379,1781199043000,-6913.35885915,0.00019811,2]
[424844401,1781199046000,-15499.99999987,0.00019811,2]
[424844400,1781199046000,-3925.30206366,0.00019811,2]
[424844399,1781199046000,-151.0,0.00016232,2]
[424844412,1781199272000,152.0,8.964e-05,7]
[424844456,1781200232000,-501.36769115,0.00012174,2]
[424844459,1781200232000,-500.0,0.00012174,2]
[424844453,1781200232000,-500.0,0.00012174,2]
[424844458,1781200232000,-500.0,0.00012174,2]
[424844461,1781200232000,-500.0,0.00012174,2]
[424844457,1781200232000,-500.0,0.00012174,2]
[424844454,1781200232000,-500.0,0.00012174,2]
[424844455,1781200232000,-500.0,0.00012174,2]
[424844451,1781200232000,-500.0,0.00012174,2]
[424844452,1781200232000,-500.0,0.00012174,2]
[424844462,1781200232000,-500.0,0.00012174,2]
[424844467,1781200232000,-441.0,0.00012174,2]
[424844465,1781200232000,-560.7117917,0.00012174,2]
[424844463,1781200232000,-500.0,0.00012174,2]
[424844473,1781200232000,-441.0,0.00012174,2]
[424844464,1781200232000,-301.82237475,0.00012174,2]
[424844468,1781200232000,-441.0,0.00012174,2]
[424844471,1781200232000,-441.0,0.00012174,2]
[424844466,1781200232000,-441.0,0.00012174,2]
[424844472,1781200232000,-500.0,0.00012174,2]
[424844469,1781200232000,-441.0,0.00012174,2]
[424844448,1781200232000,-500.0,0.00012174,2]
[424844470,1781200232000,-441.0,0.00012174,2]
[424844447,1781200232000,-500.0,0.00012174,2]
[424844430,1781200232000,-300.0,0.00011941,2]
[424844446,1781200232000,-500.0,0.00012174,2]
[424844425,1781200232000,-166.66,0.00011804,2]
[424844427,1781200232000,-249.38,0.00011935,2]
[424844426,1781200232000,-300.0,0.00011869,2]
[424844428,1781200232000,-300.0,0.00011941,2]
[424844436,1781200232000,-166.66,0.00012052,2]
[424844435,1781200232000,-459.0,0.00012027,2]
[424844429,1781200232000,-300.0,0.00011941,2]
[424844434,1781200232000,-458.0,0.00012027,2]
[424844433,1781200232000,-150.0,0.00012018,2]
[424844432,1781200232000,-1806.32,0.00011986,2]
[424844431,1781200232000,-1211.71087732,0.00011952,2]
[424844438,1781200232000,-448.0,0.00012135,2]
[424844439,1781200232000,-450.0,0.00012135,2]
[424844437,1781200232000,-300.0,0.00012134,2]
[424844449,1781200232000,-500.0,0.00012174,2]
[424844450,1781200232000,-500.0,0.00012174,2]
[424844443,1781200232000,-500.0,0.00012174,2]
[424844440,1781200232000,-443.0,0.00012135,2]
[424844444,1781200232000,-500.0,0.00012174,2]
[424844442,1781200232000,-500.0,0.00012174,2]
[424844441,1781200232000,-150.0,0.00012137,2]
[424844445,1781200232000,-500.0,0.00012174,2]
[424844474,1781200232000,-500.0,0.00012174,2]
[424844519,1781200232000,-226.0,0.00012448,2]
[424844478,1781200232000,-500.0,0.00012174,2]
[424844503,1781200232000,-441.0,0.00012174,2]
[424844500,1781200232000,-441.0,0.00012174,2]
[424844501,1781200232000,-441.0,0.00012174,2]
[424844507,1781200232000,-150.0,0.00012375,2]
[424844508,1781200232000,-601.94042556,0.00012447,2]
[424844510,1781200232000,-228.0,0.00012448,2]
[424844506,1781200232000,-166.66,0.00012301,2]
[424844505,1781200232000,-150.0,0.00012256,2]
[424844512,1781200232000,-222.0,0.00012448,2]
[424844522,1781200232000,-226.0,0.00012448,2]
[424844511,1781200232000,-226.0,0.00012448,2]
[424844518,1781200232000,-223.0,0.00012448,2]
[424844515,1781200232000,-223.0,0.00012448,2]
[424844520,1781200232000,-225.0,0.00012448,2]
[424844513,1781200232000,-226.0,0.00012448,2]
[424844514,1781200232000,-224.0,0.00012448,2]
[424844517,1781200232000,-224.0,0.00012448,2]
[424844516,1781200232000,-221.0,0.00012448,2]
[424844521,1781200232000,-227.0,0.00012448,2]
[424844475,1781200232000,-441.0,0.00012174,2]
[424844524,1781200232000,-223.0,0.00012448,2]
[424844504,1781200232000,-453.07899229,0.00012174,2]
[424844509,1781200232000,-150.0,0.00012447,2]
[424844523,1781200232000,-229.0,0.00012448,2]
[424844492,1781200232000,-500.0,0.00012174,2]
[424844477,1781200232000,-441.0,0.00012174,2]
[424844502,1781200232000,-441.0,0.00012174,2]
[424844487,1781200232000,-441.0,0.00012174,2]
[424844479,1781200232000,-441.0,0.00012174,2]
[424844483,1781200232000,-441.0,0.00012174,2]
[424844484,1781200232000,-500.0,0.00012174,2]
[424844476,1781200232000,-500.0,0.00012174,2]
[424844480,1781200232000,-500.0,0.00012174,2]
[424844482,1781200232000,-500.0,0.00012174,2]
[424844485,1781200232000,-441.0,0.00012174,2]
[424844481,1781200232000,-441.0,0.00012174,2]
[424844486,1781200232000,-500.0,0.00012174,2]
[424844495,1781200232000,-441.0,0.00012174,2]
[424844490,1781200232000,-500.0,0.00012174,2]
[424844496,1781200232000,-500.0,0.00012174,2]
[424844499,1781200232000,-441.0,0.00012174,2]
[424844498,1781200232000,-441.0,0.00012174,2]
[424844497,1781200232000,-233.24958669,0.00012174,2]
[424844488,1781200232000,-500.0,0.00012174,2]
[424844494,1781200232000,-500.0,0.00012174,2]
[424844493,1781200232000,-500.0,0.00012174,2]
[424844489,1781200232000,-441.0,0.00012174,2]
[424844491,1781200232000,-441.0,0.00012174,2]
[424844555,1781200233000,-445.0,0.00012448,2]
[424844553,1781200233000,-449.0,0.00012448,2]
[424844550,1781200233000,-456.0,0.00012448,2]
[424844556,1781200233000,-443.0,0.00012448,2]
[424844551,1781200233000,-449.0,0.00012448,2]
[424844552,1781200233000,-449.0,0.00012448,2]
[424844547,1781200233000,-448.0,0.00012448,2]
[424844554,1781200233000,-443.0,0.00012448,2]
[424844558,1781200233000,-443.0,0.00012448,2]
[424844566,1781200233000,-63.46556556,0.00012524,2]
[424844557,1781200233000,-455.0,0.00012448,2]
[424844565,1781200233000,-1936.53443444,0.00012516,2]
[424844559,1781200233000,-444.0,0.00012448,2]
[424844560,1781200233000,-441.0,0.00012448,2]
[424844561,1781200233000,-221.77,0.00012467,2]
[424844563,1781200233000,-13598.3578963,0.00012516,2]
[424844562,1781200233000,-150.0,0.00012494,2]
[424844567,1781200233000,-436.53443444,0.00012524,2]
[424844546,1781200233000,-448.0,0.00012448,2]
[424844569,1781200233000,-500.0,0.00012524,2]
[424844564,1781200233000,-1642.20766926,0.00012516,2]
[424844548,1781200233000,-457.0,0.00012448,2]
[424844534,1781200233000,-445.0,0.00012448,2]
[424844543,1781200233000,-457.0,0.00012448,2]
[424844571,1781200233000,-233.90437203,0.00012524,2]
[424844526,1781200233000,-222.0,0.00012448,2]
[424844528,1781200233000,-458.0,0.00012448,2]
[424844529,1781200233000,-445.0,0.00012448,2]
[424844525,1781200233000,-225.0,0.00012448,2]
[424844527,1781200233000,-455.0,0.00012448,2]
[424844532,1781200233000,-450.0,0.00012448,2]
[424844533,1781200233000,-448.0,0.00012448,2]
[424844530,1781200233000,-445.0,0.00012448,2]
[424844549,1781200233000,-441.0,0.00012448,2]
[424844531,1781200233000,-449.0,0.00012448,2]
[424844537,1781200233000,-458.0,0.00012448,2]
[424844545,1781200233000,-449.0,0.00012448,2]
[424844544,1781200233000,-455.0,0.00012448,2]
[424844536,1781200233000,-442.0,0.00012448,2]
[424844538,1781200233000,-455.0,0.00012448,2]
[424844539,1781200233000,-453.0,0.00012448,2]
[424844542,1781200233000,-451.0,0.00012448,2]
[424844541,1781200233000,-449.0,0.00012448,2]
[424844540,1781200233000,-441.0,0.00012448,2]
[424844535,1781200233000,-457.0,0.00012448,2]
[424844570,1781200233000,-266.09562797,0.00012524,2]
[424844603,1781200233000,-153.11598501,0.00012697,2]
[424844572,1781200233000,-500.0,0.00012524,2]
[424844596,1781200233000,-150.0,0.00012613,2]
[424844593,1781200233000,-829.67331239,0.000126,2]
[424844595,1781200233000,-1313.47301358,0.000126,2]
[424844600,1781200233000,-257.02104322,0.00012697,2]
[424844601,1781200233000,-500.0,0.00012697,2]
[424844602,1781200233000,-346.88401499,0.00012697,2]
[424844611,1781200233000,-5920.80415731,0.00012698,2]
[424844609,1781200233000,-616.27284,0.00012697,2]
[424844607,1781200233000,-481.92424523,0.00012697,2]
[424844597,1781200233000,-200.78997788,0.00012688,2]
[424844606,1781200233000,-428.88574778,0.00012697,2]
[424844604,1781200233000,-240.53749099,0.00012697,2]
[424844608,1781200233000,-500.0,0.00012697,2]
[424844613,1781200233000,-1023.16161834,0.00012698,2]
[424844612,1781200233000,-20238.43873798,0.00012698,2]
[424844615,1781200233000,-427.95755431,0.00012698,2]
[424844616,1781200233000,-1028.29474345,0.00012698,2]
[424844614,1781200233000,-3458.02756157,0.00012698,2]
[424844617,1781200233000,-471.84604647,0.00012698,2]
[424844575,1781200233000,-50.35542298,0.00012524,2]
[424844610,1781200233000,-500.0,0.00012697,2]
[424844598,1781200233000,-188.67284725,0.00012697,7]
[424844605,1781200233000,-289.32457474,0.00012697,2]
[424844590,1781200233000,-1051.47389897,0.000126,2]
[424844576,1781200233000,-500.0,0.00012524,2]
[424844594,1781200233000,-300.0,0.000126,4]
[424844568,1781200233000,-500.0,0.00012524,2]
[424844573,1781200233000,-500.0,0.00012524,2]
[424844577,1781200233000,-500.0,0.00012524,2]
[424844578,1781200233000,-500.0,0.00012524,2]
[424844582,1781200233000,-445.04712458,0.00012524,2]
[424844579,1781200233000,-500.0,0.00012524,2]
[424844580,1781200233000,-173.90266134,0.00012524,2]
[424844581,1781200233000,-500.0,0.00012524,2]
[424844574,1781200233000,-112.10061004,0.00012524,2]
[424844583,1781200233000,-54.95287542,0.00012524,2]
[424844584,1781200233000,-550.25241082,0.00012524,2]
[424844592,1781200233000,-272.12352312,0.000126,2]
[424844591,1781200233000,-354.00232647,0.000126,2]
[424844588,1781200233000,-89.09613897,0.00012549,2]
[424844599,1781200233000,-2000.0,0.00012697,2]
[424844586,1781200233000,-31.77471375,0.00012548,2]
[424844587,1781200233000,-339.63386103,0.00012548,2]
[424844585,1781200233000,-201.32,0.00012533,2]
[424844589,1781200233000,-77.56386103,0.00012549,2]
[424844638,1781200238000,-1000.0,0.000128,4]
[424844643,1781200238000,-241.78455443,0.00012984,2]
[424844640,1781200238000,-1400.0,0.000129,4]
[424844641,1781200238000,-250.0,0.00012984,2]
[424844642,1781200238000,-300.0,0.00012984,2]
[424844639,1781200238000,-800.0,0.000129,4]
[424844637,1781200238000,-500.0,0.000128,4]
[424844646,1781200238000,-575.078954,0.00013218,2]
[424844632,1781200238000,-700.0,0.000127,4]
[424844635,1781200238000,-166.66,0.00012798,2]
[424844634,1781200238000,-200.0,0.00012738,2]
[424844633,1781200238000,-213.0,0.00012732,2]
[424844630,1781200238000,-1718641.69105645,0.00012698,2]
[424844631,1781200238000,-200.0,0.000127,4]
[424844628,1781200238000,-1907.96512412,0.00012698,2]
[424844629,1781200238000,-1130.0,0.00012698,2]
[424844644,1781200238000,-250.0,0.00012984,2]
[424844636,1781200238000,-663.27002419,0.00012798,2]
[424844645,1781200238000,-166.66,0.00013046,2]
[424844651,1781200238000,-500.0,0.00013324,2]
[424844649,1781200238000,-420.0,0.00013318,2]
[424844667,1781200238000,-500.0,0.00013345,2]
[424844647,1781200238000,-566.6255574,0.00013224,2]
[424844664,1781200238000,-500.0,0.00013345,2]
[424844662,1781200238000,-500.0,0.00013345,2]
[424844666,1781200238000,-500.0,0.00013345,2]
[424844663,1781200238000,-500.0,0.00013345,2]
[424844665,1781200238000,-500.0,0.00013345,2]
[424844659,1781200238000,-588.66070485,0.00013345,2]
[424844660,1781200238000,-500.0,0.00013345,2]
[424844661,1781200238000,-500.0,0.00013345,2]
[424844657,1781200238000,-184.85073511,0.00013345,2]
[424844653,1781200238000,-150.0,0.00013345,2]
[424844656,1781200238000,-150.0,0.00013345,2]
[424844650,1781200238000,-500.0,0.00013324,2]
[424844648,1781200238000,-1301337.8786,0.00013245,2]
[424844652,1781200238000,-283.99832687,0.00013324,2]
[424844658,1781200238000,-500.0,0.00013345,2]
[424844654,1781200238000,-166.61154973,0.00013345,2]
[424844655,1781200238000,-150.0,0.00013345,2]
[424844684,1781200239000,-500.0,0.00013345,2]
[424844686,1781200239000,-4180.1811,0.00013497,2]
[424844687,1781200239000,-2500.0,0.00013509,2]
[424844690,1781200239000,-32744.82778243,0.00013597,2]
[424844689,1781200239000,-255.0,0.00013542,2]
[424844692,1781200239000,-151.0,0.00013617,2]
[424844691,1781200239000,-500.0,0.00013616,2]
[424844694,1781200239000,-151.0,0.00013617,2]
[424844697,1781200239000,-500.0,0.00013619,2]
[424844696,1781200239000,-500.0,0.00013619,2]
[424844685,1781200239000,-296.36700609,0.00013345,2]
[424844698,1781200239000,-500.0,0.00013619,2]
[424844688,1781200239000,-33277.9515,0.0001352,2]
[424844682,1781200239000,-188.15521262,0.00013345,2]
[424844680,1781200239000,-150.0,0.00013345,2]
[424844683,1781200239000,-500.0,0.00013345,2]
[424844701,1781200239000,-215.95576085,0.00013619,2]
[424844670,1781200239000,-500.0,0.00013345,2]
[424844669,1781200239000,-500.0,0.00013345,2]
[424844668,1781200239000,-175.20689526,0.00013345,2]
[424844673,1781200239000,-500.0,0.00013345,2]
[424844671,1781200239000,-500.0,0.00013345,2]
[424844693,1781200239000,-151.0,0.00013617,2]
[424844681,1781200239000,-500.0,0.00013345,2]
[424844674,1781200239000,-500.0,0.00013345,2]
[424844677,1781200239000,-500.0,0.00013345,2]